[Event "*** Titled Tuesday Blitz"]
[Site "Chess.com"]
[Date "2021.03.30"]
[Round "1"]
[White "Rozum_Ivan"]
[Black "volkanyirik"]
[Result "1/2-1/2"]
[WhiteElo "2745"]
[BlackElo "2417"]
[TimeControl "180+1"]
[EndTime "10:09:22 PDT"]
[Termination "Game drawn by repetition"]

1. d4 {[%clk 0:03:00.9]} 1... Nf6 {[%clk 0:02:55.4]} 2. c4 {[%clk 0:03:00.3]}
2... c5 {[%clk 0:02:55.7]} 3. d5 {[%clk 0:03:00.3]} 3... b5 {[%clk 0:02:56.2]}
4. cxb5 {[%clk 0:03:00.4]} 4... a6 {[%clk 0:02:56.7]} 5. bxa6 {[%clk 0:03:00.6]}
5... Bxa6 {[%clk 0:02:57.6]} 6. Nc3 {[%clk 0:03:00.8]} 6... d6 {[%clk 0:02:58]}
7. Nf3 {[%clk 0:03:01.1]} 7... g6 {[%clk 0:02:57.8]} 8. g3 {[%clk 0:02:46]} 8...
Bg7 {[%clk 0:02:57.1]} 9. Bg2 {[%clk 0:02:46.4]} 9... O-O {[%clk 0:02:57.6]} 10.
O-O {[%clk 0:02:47]} 10... Nbd7 {[%clk 0:02:58.1]} 11. Qc2 {[%clk 0:02:43.9]}
11... Qa5 {[%clk 0:02:57.8]} 12. Rd1 {[%clk 0:02:34.8]} 12... Rfb8 {[%clk
0:02:46.7]} 13. Rb1 {[%clk 0:02:32.2]} 13... Ng4 {[%clk 0:02:41.9]} 14. h3
{[%clk 0:02:10.7]} 14... Nge5 {[%clk 0:02:40.8]} 15. Nxe5 {[%clk 0:02:11]} 15...
Nxe5 {[%clk 0:02:41.5]} 16. b3 {[%clk 0:02:05.8]} 16... Nc4 {[%clk 0:02:32.7]}
17. Na4 {[%clk 0:01:30.6]} 17... Nb6 {[%clk 0:02:13.1]} 18. Bd2 {[%clk 0:01:18]}
18... Qb5 {[%clk 0:02:13]} 19. Nc3 {[%clk 0:01:18.4]} 19... Qd7 {[%clk
0:02:00.1]} 20. a4 {[%clk 0:01:07.9]} 20... Bb7 {[%clk 0:01:26]} 21. e4 {[%clk
0:00:53.6]} 21... c4 {[%clk 0:01:19.6]} 22. b4 {[%clk 0:00:36.6]} 22... Nxa4
{[%clk 0:01:16]} 23. Nxa4 {[%clk 0:00:29.9]} 23... Qxa4 {[%clk 0:01:12.4]} 24.
Qxc4 {[%clk 0:00:30.1]} 24... Ba6 {[%clk 0:01:06.5]} 25. Qb3 {[%clk 0:00:27.1]}
25... Qxb3 {[%clk 0:01:00.1]} 26. Rxb3 {[%clk 0:00:28]} 26... Bc4 {[%clk
0:01:00.5]} 27. Rbb1 {[%clk 0:00:26.5]} 27... Bd3 {[%clk 0:00:58.3]} 28. Rbc1
{[%clk 0:00:23]} 28... Ra2 {[%clk 0:00:38.7]} 29. Bg5 {[%clk 0:00:13.2]} 29...
Be2 {[%clk 0:00:32.2]} 30. Rd2 {[%clk 0:00:11.2]} 30... Rxd2 {[%clk 0:00:27.7]}
31. Bxd2 {[%clk 0:00:12.1]} 31... Bd4 {[%clk 0:00:23]} 32. Bf1 {[%clk
0:00:11.4]} 32... Bf3 {[%clk 0:00:19]} 33. Bd3 {[%clk 0:00:11.6]} 33... Ra8
{[%clk 0:00:19.2]} 34. Rb1 {[%clk 0:00:09.3]} 34... Ra3 {[%clk 0:00:18.6]} 35.
Bc2 {[%clk 0:00:05.6]} 35... Ra2 {[%clk 0:00:18.6]} 36. Rc1 {[%clk 0:00:05.4]}
36... Bb2 {[%clk 0:00:14.3]} 37. Rb1 {[%clk 0:00:05.8]} 37... Bd4 {[%clk
0:00:13.8]} 38. Rc1 {[%clk 0:00:06.1]} 38... Bb2 {[%clk 0:00:06.9]} 39. Re1
{[%clk 0:00:06.1]} 39... Bd4 {[%clk 0:00:05.6]} 40. Be3 {[%clk 0:00:06.6]} 40...
Bxe3 {[%clk 0:00:02.1]} 41. Rxe3 {[%clk 0:00:07.5]} 41... Rxc2 {[%clk
0:00:01.6]} 42. Rxf3 {[%clk 0:00:07.8]} 42... Rb2 {[%clk 0:00:02.5]} 43. Rc3
{[%clk 0:00:05.9]} 43... Rxb4 {[%clk 0:00:02.5]} 44. f3 {[%clk 0:00:06.6]} 44...
Kg7 {[%clk 0:00:02.8]} 45. g4 {[%clk 0:00:07]} 45... Kf6 {[%clk 0:00:03.7]} 46.
Kf2 {[%clk 0:00:07.4]} 46... g5 {[%clk 0:00:04.6]} 47. Kg3 {[%clk 0:00:07.9]}
47... h6 {[%clk 0:00:05.5]} 48. Rc8 {[%clk 0:00:08.1]} 48... Rb1 {[%clk
0:00:05.5]} 49. h4 {[%clk 0:00:07.9]} 49... Rg1+ {[%clk 0:00:04.5]} 50. Kf2
{[%clk 0:00:08.3]} 50... Rb1 {[%clk 0:00:05.2]} 51. h5 {[%clk 0:00:08.7]} 51...
Rb2+ {[%clk 0:00:04.5]} 52. Kg3 {[%clk 0:00:09.3]} 52... Rb1 {[%clk 0:00:04.6]}
53. Rh8 {[%clk 0:00:09.6]} 53... Kg7 {[%clk 0:00:05]} 54. Re8 {[%clk 0:00:10.3]}
54... Kf6 {[%clk 0:00:05.5]} 55. Rg8 {[%clk 0:00:10.7]} 55... Rg1+ {[%clk
0:00:04.3]} 56. Kf2 {[%clk 0:00:11.1]} 56... Ra1 {[%clk 0:00:05.2]} 57. Rc8
{[%clk 0:00:11.5]} 57... Ra2+ {[%clk 0:00:05.6]} 58. Kg3 {[%clk 0:00:11.4]}
58... Ra1 {[%clk 0:00:06.5]} 59. Rc2 {[%clk 0:00:11.5]} 59... Rg1+ {[%clk
0:00:06.1]} 60. Kf2 {[%clk 0:00:11.6]} 60... Ra1 {[%clk 0:00:07]} 61. Re2 {[%clk
0:00:12]} 61... Rh1 {[%clk 0:00:06.8]} 62. Kg3 {[%clk 0:00:12]} 62... Ra1 {[%clk
0:00:07.3]} 63. Re3 {[%clk 0:00:11.9]} 63... Rg1+ {[%clk 0:00:07.3]} 64. Kf2
{[%clk 0:00:12.4]} 64... Rb1 {[%clk 0:00:08.2]} 65. Rc3 {[%clk 0:00:12.7]} 65...
Rh1 {[%clk 0:00:08.3]} 66. Rc8 {[%clk 0:00:12.7]} 66... Rb1 {[%clk 0:00:08.1]}
67. Kg3 {[%clk 0:00:12.9]} 67... Kg7 {[%clk 0:00:08.2]} 68. Rc7 {[%clk
0:00:12.5]} 68... Kf6 {[%clk 0:00:08.6]} 69. Rd7 {[%clk 0:00:13.1]} 69... Rg1+
{[%clk 0:00:08.6]} 70. Kf2 {[%clk 0:00:13.3]} 70... Rb1 {[%clk 0:00:09.5]} 71.
Rd8 {[%clk 0:00:13]} 71... Rb2+ {[%clk 0:00:09.5]} 72. Kg3 {[%clk 0:00:13]}
72... Rb1 {[%clk 0:00:09.7]} 73. Rh8 {[%clk 0:00:13.1]} 73... Kg7 {[%clk
0:00:10]} 74. Re8 {[%clk 0:00:12.9]} 74... Kf6 {[%clk 0:00:10.5]} 75. Ra8 {[%clk
0:00:12]} 75... Rg1+ {[%clk 0:00:10.4]} 76. Kf2 {[%clk 0:00:12.4]} 76... Rb1
{[%clk 0:00:11.3]} 77. Ra2 {[%clk 0:00:12.5]} 77... Rb3 {[%clk 0:00:11.1]} 78.
Rc2 {[%clk 0:00:12.3]} 78... Ra3 {[%clk 0:00:11.2]} 79. Kg2 {[%clk 0:00:12.7]}
79... Rb3 {[%clk 0:00:11.5]} 80. Rf2 {[%clk 0:00:12.9]} 80... Ke5 {[%clk
0:00:11.1]} 81. Kg3 {[%clk 0:00:11.6]} 81... Ra3 {[%clk 0:00:10.6]} 82. Rc2
{[%clk 0:00:11.7]} 82... Ra1 {[%clk 0:00:10.2]} 83. Rc8 {[%clk 0:00:11.7]} 83...
Kf6 {[%clk 0:00:09.7]} 84. Rh8 {[%clk 0:00:11]} 84... Kg7 {[%clk 0:00:09.9]} 85.
Re8 {[%clk 0:00:11.4]} 85... Kf6 {[%clk 0:00:09.5]} 86. Rh8 {[%clk 0:00:11.5]}
86... Kg7 {[%clk 0:00:09.7]} 87. Re8 {[%clk 0:00:11.8]} 87... Kf6 {[%clk
0:00:10.1]} 88. Rh8 {[%clk 0:00:12]} 1/2-1/2

[Event "*** Titled Tuesday Blitz"]
[Site "Chess.com"]
[Date "2021.03.30"]
[Round "1"]
[White "bsnsun"]
[Black "Sam_ChessMood"]
[Result "1/2-1/2"]
[WhiteElo "2463"]
[BlackElo "2866"]
[TimeControl "180+1"]
[EndTime "10:09:43 PDT"]
[Termination "Game drawn - insufficient material"]

1. Nf3 {[%clk 0:02:56.9]} 1... d5 {[%clk 0:02:59.2]} 2. d4 {[%clk 0:02:57.4]}
2... Nf6 {[%clk 0:02:59]} 3. c4 {[%clk 0:02:57.9]} 3... c6 {[%clk 0:02:59]} 4.
g3 {[%clk 0:02:57.6]} 4... g6 {[%clk 0:02:56.9]} 5. Bg2 {[%clk 0:02:57.1]} 5...
Bg7 {[%clk 0:02:57.2]} 6. b3 {[%clk 0:02:57.5]} 6... O-O {[%clk 0:02:56.6]} 7.
Bb2 {[%clk 0:02:57.7]} 7... a5 {[%clk 0:02:56.7]} 8. Nc3 {[%clk 0:02:55.7]} 8...
Bf5 {[%clk 0:02:53.7]} 9. Nd2 {[%clk 0:02:50.3]} 9... Qd7 {[%clk 0:02:36]} 10.
Na4 {[%clk 0:02:32.9]} 10... Qd8 {[%clk 0:02:29.9]} 11. Nc3 {[%clk 0:02:29.7]}
11... Na6 {[%clk 0:01:53.5]} 12. O-O {[%clk 0:02:29.4]} 12... e6 {[%clk
0:01:46.7]} 13. Re1 {[%clk 0:02:28.7]} 13... c5 {[%clk 0:01:32.6]} 14. dxc5
{[%clk 0:02:16.4]} 14... Nxc5 {[%clk 0:01:31.4]} 15. cxd5 {[%clk 0:02:14.1]}
15... Nxd5 {[%clk 0:01:30.3]} 16. Rc1 {[%clk 0:02:09.5]} 16... Nb4 {[%clk
0:01:30.3]} 17. a3 {[%clk 0:02:06]} 17... Nc6 {[%clk 0:01:25.4]} 18. Na4 {[%clk
0:01:52]} 18... Nxa4 {[%clk 0:01:09.1]} 19. Bxg7 {[%clk 0:01:50.7]} 19... Kxg7
{[%clk 0:01:09.7]} 20. bxa4 {[%clk 0:01:50.4]} 20... e5 {[%clk 0:01:09.7]} 21.
Nb3 {[%clk 0:01:44.7]} 21... Qe7 {[%clk 0:01:06.5]} 22. Nc5 {[%clk 0:01:41.4]}
22... Rfd8 {[%clk 0:01:05.7]} 23. Qb3 {[%clk 0:01:41]} 23... Rab8 {[%clk
0:00:53.9]} 24. e3 {[%clk 0:01:40.7]} 24... h5 {[%clk 0:00:49.3]} 25. Qc3 {[%clk
0:01:40.4]} 25... Rbc8 {[%clk 0:00:38.4]} 26. Qb2 {[%clk 0:01:38.2]} 26... Rc7
{[%clk 0:00:33.3]} 27. h4 {[%clk 0:01:36.6]} 27... Kh7 {[%clk 0:00:32.9]} 28.
Ne4 {[%clk 0:01:27.7]} 28... Bxe4 {[%clk 0:00:33.2]} 29. Bxe4 {[%clk 0:01:28.3]}
29... Rd6 {[%clk 0:00:33.1]} 30. Bg2 {[%clk 0:01:26.6]} 30... e4 {[%clk
0:00:29.6]} 31. Rc4 {[%clk 0:01:26.2]} 31... f5 {[%clk 0:00:29.4]} 32. Rec1
{[%clk 0:01:25.4]} 32... Rcd7 {[%clk 0:00:29.8]} 33. Bf1 {[%clk 0:01:24.2]}
33... Ne5 {[%clk 0:00:29.1]} 34. Rc8 {[%clk 0:01:18.7]} 34... Qf6 {[%clk
0:00:26.1]} 35. Kg2 {[%clk 0:01:15.8]} 35... Rd2 {[%clk 0:00:26.3]} 36. Qc3
{[%clk 0:01:09.7]} 36... Ng4 {[%clk 0:00:20.6]} 37. Qxf6 {[%clk 0:01:07.5]}
37... Nxf6 {[%clk 0:00:21.5]} 38. R1c2 {[%clk 0:01:07.7]} 38... Ng4 {[%clk
0:00:21.2]} 39. Be2 {[%clk 0:01:06.5]} 39... Ne5 {[%clk 0:00:17.4]} 40. Kf1
{[%clk 0:01:05.4]} 40... Rxc2 {[%clk 0:00:17.2]} 41. Rxc2 {[%clk 0:01:04.8]}
41... Kg7 {[%clk 0:00:17.5]} 42. Bb5 {[%clk 0:01:04.8]} 42... Re7 {[%clk
0:00:16.7]} 43. Ke2 {[%clk 0:01:04.8]} 43... Kf6 {[%clk 0:00:17]} 44. Rc8 {[%clk
0:01:04.6]} 44... Nf3 {[%clk 0:00:17]} 45. Rf8+ {[%clk 0:01:04.2]} 45... Kg7
{[%clk 0:00:16.9]} 46. Rc8 {[%clk 0:01:03.1]} 46... Kf6 {[%clk 0:00:16.6]} 47.
Rf8+ {[%clk 0:01:02.8]} 47... Ke5 {[%clk 0:00:17.2]} 48. Rg8 {[%clk 0:01:01.1]}
48... Rc7 {[%clk 0:00:15.8]} 49. Rxg6 {[%clk 0:00:58.9]} 49... Rc2+ {[%clk
0:00:15.9]} 50. Kf1 {[%clk 0:00:59.4]} 50... Rc1+ {[%clk 0:00:15.6]} 51. Kg2
{[%clk 0:00:59.1]} 51... Rg1+ {[%clk 0:00:15.6]} 52. Kh3 {[%clk 0:00:59.6]}
52... Rh1+ {[%clk 0:00:14.6]} 53. Kg2 {[%clk 0:00:59.4]} 53... Rg1+ {[%clk
0:00:15]} 54. Kh3 {[%clk 0:00:59.6]} 54... Ra1 {[%clk 0:00:12.5]} 55. Rh6 {[%clk
0:00:55.4]} 55... Ra2 {[%clk 0:00:10.6]} 56. Kg2 {[%clk 0:00:54.2]} 56... Ne1+
{[%clk 0:00:11]} 57. Kf1 {[%clk 0:00:54.1]} 57... Nd3 {[%clk 0:00:10.5]} 58.
Rxh5 {[%clk 0:00:44]} 58... Rxf2+ {[%clk 0:00:09.4]} 59. Kg1 {[%clk 0:00:44.6]}
59... Rf3 {[%clk 0:00:09.9]} 60. g4 {[%clk 0:00:44.4]} 60... Rg3+ {[%clk
0:00:10.2]} 61. Kf1 {[%clk 0:00:43.6]} 61... Rxg4 {[%clk 0:00:05.9]} 62. Rxf5+
{[%clk 0:00:42.6]} 62... Kxf5 {[%clk 0:00:05.3]} 63. Bd7+ {[%clk 0:00:43.1]}
63... Ke5 {[%clk 0:00:05.7]} 64. Bxg4 {[%clk 0:00:43.5]} 64... Nc5 {[%clk
0:00:06.1]} 65. Bd1 {[%clk 0:00:42.4]} 65... Kf5 {[%clk 0:00:04.4]} 66. Kf2
{[%clk 0:00:42.4]} 66... Nd3+ {[%clk 0:00:04.6]} 67. Kg3 {[%clk 0:00:43]} 67...
Nb2 {[%clk 0:00:04.8]} 68. Bb3 {[%clk 0:00:43.5]} 68... Nd3 {[%clk 0:00:04.7]}
69. Bc2 {[%clk 0:00:42.9]} 69... Nc5 {[%clk 0:00:04.8]} 70. Kh3 {[%clk
0:00:40.4]} 70... b6 {[%clk 0:00:04.5]} 71. Kg3 {[%clk 0:00:39.8]} 71... Nd7
{[%clk 0:00:04.6]} 72. h5 {[%clk 0:00:39.4]} 72... Nf6 {[%clk 0:00:04.8]} 73.
Kh4 {[%clk 0:00:39.5]} 73... Nd5 {[%clk 0:00:03.6]} 74. h6 {[%clk 0:00:37.8]}
74... Nf6 {[%clk 0:00:03.8]} 75. Kg3 {[%clk 0:00:33.7]} 75... Kg6 {[%clk
0:00:03.7]} 76. Kf4 {[%clk 0:00:30]} 76... Kxh6 {[%clk 0:00:04.1]} 77. Bxe4
{[%clk 0:00:30.5]} 77... Kg7 {[%clk 0:00:04.6]} 78. Ke5 {[%clk 0:00:30.5]} 78...
Ng4+ {[%clk 0:00:04.8]} 79. Kd4 {[%clk 0:00:30.3]} 79... Kf6 {[%clk 0:00:04.8]}
80. Bf3 {[%clk 0:00:29.9]} 80... Ne5 {[%clk 0:00:04.9]} 81. Bd5 {[%clk
0:00:29.4]} 81... Ng4 {[%clk 0:00:04.9]} 82. e4 {[%clk 0:00:29.1]} 82... Ne5
{[%clk 0:00:04.4]} 83. Bb7 {[%clk 0:00:29.2]} 83... Nf3+ {[%clk 0:00:04.4]} 84.
Kd5 {[%clk 0:00:29]} 84... Nd2 {[%clk 0:00:04.6]} 85. e5+ {[%clk 0:00:28.1]}
85... Ke7 {[%clk 0:00:04.3]} 86. Bc8 {[%clk 0:00:28.3]} 86... Nb1 {[%clk
0:00:04]} 87. Kc6 {[%clk 0:00:26.9]} 87... Nxa3 {[%clk 0:00:04.3]} 88. Kxb6
{[%clk 0:00:27.4]} 88... Nc4+ {[%clk 0:00:04.6]} 89. Kb5 {[%clk 0:00:27.7]}
89... Nxe5 {[%clk 0:00:04.6]} 90. Kxa5 {[%clk 0:00:28.4]} 90... Kd6 {[%clk
0:00:05]} 91. Kb6 {[%clk 0:00:28.5]} 91... Nc4+ {[%clk 0:00:05.2]} 92. Kb5
{[%clk 0:00:28.9]} 92... Na3+ {[%clk 0:00:04.5]} 93. Kb4 {[%clk 0:00:28.4]}
93... Nc2+ {[%clk 0:00:04.8]} 94. Kc3 {[%clk 0:00:27.9]} 94... Ne3 {[%clk
0:00:04.9]} 95. Kd4 {[%clk 0:00:27.5]} 95... Nd5 {[%clk 0:00:05.2]} 96. a5
{[%clk 0:00:24.9]} 96... Nb4 {[%clk 0:00:04.8]} 97. Kc4 {[%clk 0:00:24.9]} 97...
Nc6 {[%clk 0:00:04.8]} 98. Kb5 {[%clk 0:00:25.1]} 98... Nxa5 {[%clk 0:00:04.7]}
1/2-1/2

[Event "*** Titled Tuesday Blitz"]
[Site "Chess.com"]
[Date "2021.03.30"]
[Round "2"]
[White "1random"]
[Black "Eltaj_Safarli"]
[Result "0-1"]
[WhiteElo "2555"]
[BlackElo "2860"]
[TimeControl "180+1"]
[EndTime "10:11:35 PDT"]
[Termination "Eltaj_Safarli won by resignation"]

1. e4 {[%clk 0:03:00.4]} 1... e5 {[%clk 0:02:56.5]} 2. Nf3 {[%clk 0:03:00.7]}
2... Nc6 {[%clk 0:02:56.8]} 3. Nc3 {[%clk 0:03:01.6]} 3... Nf6 {[%clk
0:02:56.9]} 4. d4 {[%clk 0:03:02.3]} 4... Bb4 {[%clk 0:02:56.3]} 5. Nxe5 {[%clk
0:03:02.1]} 5... Bxc3+ {[%clk 0:02:55.3]} 6. bxc3 {[%clk 0:02:59.6]} 6... Qe7
{[%clk 0:02:56.2]} 7. Nxc6 {[%clk 0:02:30.5]} 7... Qxe4+ {[%clk 0:02:56.5]} 8.
Qe2 {[%clk 0:02:28.6]} 8... dxc6 {[%clk 0:02:56.2]} 9. Qxe4+ {[%clk 0:02:21.2]}
9... Nxe4 {[%clk 0:02:57.1]} 10. Bb2 {[%clk 0:02:19.7]} 10... Be6 {[%clk
0:02:55.6]} 0-1

[Event "*** Titled Tuesday Blitz"]
[Site "Chess.com"]
[Date "2021.03.30"]
[Round "2"]
[White "ZiggyStardust64"]
[Black "IljaJoke"]
[Result "0-1"]
[WhiteElo "2710"]
[BlackElo "2515"]
[TimeControl "180+1"]
[EndTime "10:12:02 PDT"]
[Termination "IljaJoke won by resignation"]

1. c4 {[%clk 0:03:00.9]} 1... e6 {[%clk 0:02:57.7]} 2. Nc3 {[%clk 0:03:00.7]}
2... d5 {[%clk 0:02:57.9]} 3. d4 {[%clk 0:03:01.2]} 3... c5 {[%clk 0:02:58.2]}
4. cxd5 {[%clk 0:03:01.2]} 4... exd5 {[%clk 0:02:59.1]} 5. Nf3 {[%clk
0:03:01.8]} 5... Nf6 {[%clk 0:02:56.8]} 6. Bg5 {[%clk 0:03:00.9]} 6... Be6
{[%clk 0:02:56.6]} 7. e3 {[%clk 0:02:53.7]} 7... c4 {[%clk 0:02:53.7]} 8. b3
{[%clk 0:02:49.9]} 8... Bb4 {[%clk 0:02:52.2]} 9. Rc1 {[%clk 0:02:50]} 9... Qa5
{[%clk 0:02:48.8]} 10. Qd2 {[%clk 0:01:59.8]} 10... Ne4 {[%clk 0:02:46.2]} 11.
Nxe4 {[%clk 0:02:00.4]} 11... dxe4 {[%clk 0:02:41.8]} 0-1

[Event "*** Titled Tuesday Blitz"]
[Site "Chess.com"]
[Date "2021.03.30"]
[Round "2"]
[White "volkanyirik"]
[Black "DenLaz"]
[Result "0-1"]
[WhiteElo "2415"]
[BlackElo "2839"]
[TimeControl "180+1"]
[EndTime "10:12:04 PDT"]
[Termination "DenLaz won by resignation"]

1. e4 {[%clk 0:03:00.9]} 1... e5 {[%clk 0:02:59.8]} 2. Nc3 {[%clk 0:03:01.3]}
2... Nf6 {[%clk 0:02:59.8]} 3. Nf3 {[%clk 0:03:01.9]} 3... Nc6 {[%clk
0:02:59.8]} 4. d4 {[%clk 0:03:02.4]} 4... exd4 {[%clk 0:02:59.3]} 5. Nxd4 {[%clk
0:03:03.3]} 5... Bb4 {[%clk 0:02:59.6]} 6. Nxc6 {[%clk 0:03:02.7]} 6... bxc6
{[%clk 0:03:00.3]} 7. Bd3 {[%clk 0:03:03.6]} 7... O-O {[%clk 0:03:00.6]} 8. O-O
{[%clk 0:03:03.8]} 8... d5 {[%clk 0:03:01.2]} 9. exd5 {[%clk 0:03:04.7]} 9...
cxd5 {[%clk 0:03:02.1]} 10. Bg5 {[%clk 0:03:04.8]} 10... c6 {[%clk 0:03:02.3]}
11. Qf3 {[%clk 0:03:05]} 11... Bd6 {[%clk 0:03:01.8]} 12. h3 {[%clk 0:03:03.2]}
12... Rb8 {[%clk 0:03:00.5]} 13. Rab1 {[%clk 0:03:03.5]} 13... Be5 {[%clk
0:02:57.7]} 14. Bf4 {[%clk 0:03:03.1]} 14... Qd6 {[%clk 0:02:45.3]} 15. Bxe5
{[%clk 0:03:00.4]} 15... Qxe5 {[%clk 0:02:46.2]} 16. Rfe1 {[%clk 0:03:01]} 16...
Qd6 {[%clk 0:02:44.9]} 17. b3 {[%clk 0:02:57.2]} 17... Bd7 {[%clk 0:02:37.8]}
18. Ne2 {[%clk 0:02:54.4]} 18... c5 {[%clk 0:02:34.7]} 19. Qf4 {[%clk
0:02:50.9]} 19... Qxf4 {[%clk 0:02:29.6]} 20. Nxf4 {[%clk 0:02:51.8]} 20... a5
{[%clk 0:02:27.6]} 21. a4 {[%clk 0:02:49.9]} 21... Rb4 {[%clk 0:02:25.3]} 22.
Re7 {[%clk 0:02:44.7]} 22... Rxf4 {[%clk 0:02:23.9]} 0-1

[Event "*** Titled Tuesday Blitz"]
[Site "Chess.com"]
[Date "2021.03.30"]
[Round "2"]
[White "TioCridineno"]
[Black "woodhy"]
[Result "0-1"]
[WhiteElo "2248"]
[BlackElo "2456"]
[TimeControl "180+1"]
[EndTime "10:13:03 PDT"]
[Termination "woodhy won by resignation"]

1. e4 {[%clk 0:03:00.9]} 1... e6 {[%clk 0:02:13.5]} 2. d4 {[%clk 0:02:57.4]}
2... d5 {[%clk 0:02:07.8]} 3. Nc3 {[%clk 0:02:57.4]} 3... Bb4 {[%clk 0:02:03.2]}
4. Bd2 {[%clk 0:02:53.2]} 4... Nf6 {[%clk 0:01:57.3]} 5. e5 {[%clk 0:02:52.1]}
5... Nfd7 {[%clk 0:01:56]} 6. Nce2 {[%clk 0:02:52]} 6... Be7 {[%clk 0:01:54.6]}
7. f4 {[%clk 0:02:50.3]} 7... c5 {[%clk 0:01:55.5]} 8. c3 {[%clk 0:02:49.8]}
8... Nc6 {[%clk 0:01:56.4]} 9. Nf3 {[%clk 0:02:49.7]} 9... Qb6 {[%clk
0:01:55.3]} 10. Rb1 {[%clk 0:02:46.5]} 10... f6 {[%clk 0:01:53.4]} 11. Be3
{[%clk 0:02:46]} 11... fxe5 {[%clk 0:01:51.6]} 12. fxe5 {[%clk 0:02:46.1]} 12...
cxd4 {[%clk 0:01:51.4]} 13. cxd4 {[%clk 0:02:42.6]} 13... Ncxe5 {[%clk
0:01:49.3]} 14. Nxe5 {[%clk 0:02:42.1]} 14... Nxe5 {[%clk 0:01:48.2]} 15. Nf4
{[%clk 0:02:40.6]} 15... O-O {[%clk 0:01:39.9]} 16. Be2 {[%clk 0:02:37.2]} 16...
Bb4+ {[%clk 0:01:33.6]} 17. Bd2 {[%clk 0:02:29.4]} 17... Rxf4 {[%clk 0:01:27.8]}
0-1

[Event "*** Titled Tuesday Blitz"]
[Site "Chess.com"]
[Date "2021.03.30"]
[Round "2"]
[White "bolence16"]
[Black "BlackWidow515"]
[Result "1-0"]
[WhiteElo "2422"]
[BlackElo "2181"]
[TimeControl "180+1"]
[EndTime "10:13:21 PDT"]
[Termination "bolence16 won by resignation"]

1. e4 {[%clk 0:03:00.9]} 1... e5 {[%clk 0:02:59.4]} 2. Nf3 {[%clk 0:03:00.7]}
2... Nc6 {[%clk 0:02:58.8]} 3. d4 {[%clk 0:03:00.7]} 3... exd4 {[%clk
0:02:58.5]} 4. Bc4 {[%clk 0:03:01.3]} 4... Bc5 {[%clk 0:02:59]} 5. c3 {[%clk
0:03:00.2]} 5... dxc3 {[%clk 0:02:58.2]} 6. Bxf7+ {[%clk 0:02:58.5]} 6... Kxf7
{[%clk 0:02:57.7]} 7. Qd5+ {[%clk 0:02:59.1]} 7... Ke8 {[%clk 0:02:56.6]} 8.
Qh5+ {[%clk 0:02:58.9]} 8... g6 {[%clk 0:02:56.1]} 9. Qxc5 {[%clk 0:02:58.8]}
9... Nge7 {[%clk 0:02:53.3]} 10. Nxc3 {[%clk 0:02:53.2]} 10... d6 {[%clk
0:02:41.8]} 11. Qg5 {[%clk 0:02:51.1]} 11... Be6 {[%clk 0:02:37.8]} 12. O-O
{[%clk 0:02:49.5]} 12... Qd7 {[%clk 0:02:37.3]} 13. Nd5 {[%clk 0:02:41.2]} 13...
Ng8 {[%clk 0:02:08.8]} 14. Re1 {[%clk 0:02:25.4]} 14... Nce7 {[%clk 0:02:07.3]}
15. Nd4 {[%clk 0:02:19.4]} 15... c5 {[%clk 0:01:25.5]} 16. Nxe6 {[%clk 0:02:17]}
1-0

[Event "*** Titled Tuesday Blitz"]
[Site "Chess.com"]
[Date "2021.03.30"]
[Round "2"]
[White "PlotnikovPavel"]
[Black "paulrusan"]
[Result "1-0"]
[WhiteElo "2498"]
[BlackElo "2301"]
[TimeControl "180+1"]
[EndTime "10:13:28 PDT"]
[Termination "PlotnikovPavel won by checkmate"]

1. e4 {[%clk 0:03:00.9]} 1... c5 {[%clk 0:02:59.6]} 2. c3 {[%clk 0:03:00.8]}
2... Nf6 {[%clk 0:02:59]} 3. e5 {[%clk 0:03:00.7]} 3... Nd5 {[%clk 0:02:55]} 4.
d4 {[%clk 0:03:01.6]} 4... cxd4 {[%clk 0:02:54.6]} 5. Qxd4 {[%clk 0:03:02.5]}
5... e6 {[%clk 0:02:53.9]} 6. Bd3 {[%clk 0:03:01.6]} 6... Nc6 {[%clk 0:02:52.4]}
7. Qe4 {[%clk 0:03:01.7]} 7... f5 {[%clk 0:02:52.2]} 8. Qe2 {[%clk 0:03:00.4]}
8... Be7 {[%clk 0:02:45.5]} 9. Nf3 {[%clk 0:02:58.6]} 9... O-O {[%clk
0:02:44.9]} 10. O-O {[%clk 0:02:58.4]} 10... b6 {[%clk 0:02:43.3]} 11. Na3
{[%clk 0:02:55.3]} 11... Bb7 {[%clk 0:02:39.8]} 12. Nc4 {[%clk 0:02:54.8]} 12...
b5 {[%clk 0:02:35.5]} 13. Nd6 {[%clk 0:02:53.7]} 13... Bxd6 {[%clk 0:02:35.3]}
14. exd6 {[%clk 0:02:54.6]} 14... a6 {[%clk 0:02:35.5]} 15. Ne5 {[%clk
0:02:45.1]} 15... f4 {[%clk 0:02:18]} 16. Qe4 {[%clk 0:01:52.7]} 16... Nxe5
{[%clk 0:02:17.7]} 17. Qxh7+ {[%clk 0:01:46.3]} 17... Kf7 {[%clk 0:02:16.9]} 18.
Qh5+ {[%clk 0:01:46.4]} 18... Kg8 {[%clk 0:02:05.4]} 19. Bh7+ {[%clk 0:01:44.8]}
19... Kh8 {[%clk 0:02:03.7]} 20. Bg6+ {[%clk 0:01:45.3]} 20... Kg8 {[%clk
0:01:52.5]} 21. Qh7# {[%clk 0:01:46.2]} 1-0

[Event "*** Titled Tuesday Blitz"]
[Site "Chess.com"]
[Date "2021.03.30"]
[Round "2"]
[White "chess94cu"]
[Black "GoltsevDmitry2000"]
[Result "1-0"]
[WhiteElo "2560"]
[BlackElo "2798"]
[TimeControl "180+1"]
[EndTime "10:13:56 PDT"]
[Termination "chess94cu won by resignation"]

1. d4 {[%clk 0:03:00.9]} 1... Nf6 {[%clk 0:02:59.8]} 2. Nf3 {[%clk 0:02:58.7]}
2... e6 {[%clk 0:02:59.3]} 3. c4 {[%clk 0:02:56.3]} 3... d5 {[%clk 0:02:59.6]}
4. Nc3 {[%clk 0:02:55.9]} 4... Bb4 {[%clk 0:03:00]} 5. Bg5 {[%clk 0:02:52.5]}
5... c6 {[%clk 0:02:52.1]} 6. e3 {[%clk 0:02:49.2]} 6... h6 {[%clk 0:02:48.4]}
7. Bh4 {[%clk 0:02:43.9]} 7... g5 {[%clk 0:02:46.4]} 8. Bg3 {[%clk 0:02:43.8]}
8... Ne4 {[%clk 0:02:41.1]} 9. Qb3 {[%clk 0:02:42.8]} 9... Qa5 {[%clk
0:02:11.8]} 10. Rc1 {[%clk 0:02:40.8]} 10... Nd7 {[%clk 0:02:09.6]} 11. Bd3
{[%clk 0:02:32.5]} 11... f5 {[%clk 0:02:04.8]} 12. a3 {[%clk 0:02:23.5]} 12...
Be7 {[%clk 0:01:56.5]} 13. cxd5 {[%clk 0:02:20]} 13... exd5 {[%clk 0:01:54.4]}
14. Bxe4 {[%clk 0:02:06.5]} 14... fxe4 {[%clk 0:01:52.6]} 15. Ne5 {[%clk
0:02:07.1]} 15... Nxe5 {[%clk 0:01:52.2]} 16. Bxe5 {[%clk 0:02:05.8]} 16... O-O
{[%clk 0:01:46.8]} 17. O-O {[%clk 0:02:04.9]} 17... Bf5 {[%clk 0:01:45.5]} 18.
Qxb7 {[%clk 0:02:00.4]} 18... Rf7 {[%clk 0:01:26.8]} 19. Qxa8+ {[%clk
0:01:58.5]} 19... Kh7 {[%clk 0:01:19.2]} 20. Qxc6 {[%clk 0:01:57.2]} 1-0